bitfinex/quotes_SOLUSD_20240628
["timestamp","ask_amount","ask_price","bid_price","bid_amount"]
[1719588642883,7.90092154,142.05,141.97,21.22617352]
[1719588643080,1.41432154,142.04,141.97,21.22617352]
[1719588643580,7.90092154,142.05,141.97,21.22617352]
[1719588643746,7.90092154,142.05,141.98,1.40813191]
[1719588643949,7.90092154,142.05,141.99,1.40804325]
[1719588644556,6.4866,142.05,141.99,34.68804325]
[1719588644881,6.4866,142.05,141.99,41.74304325]
[1719588645448,6.4866,142.05,141.99,40.335]
[1719588645650,1.41432154,142.04,141.97,21.22617352]
[1719588647163,6.4866,142.05,141.97,21.22617352]
[1719588647366,6.4866,142.05,141.98,52.055]
[1719588652906,6.4866,142.05,141.99,7.055]
[1719588653104,6.4866,142.05,142.0,45.0]
[1719588653806,1.41432154,142.04,142.0,45.0]
[1719588654391,1.41432154,142.04,141.99,52.055]
[1719588654592,1.41432154,142.04,141.99,45.0]
[1719588654913,1.41432154,142.04,141.99,7.055]
[1719588655122,1.41432154,142.04,142.0,45.0]
[1719588655613,1.41432154,142.04,141.99,52.055]
[1719588656212,1.41432154,142.04,141.99,45.0]
[1719588656408,1.41432154,142.04,141.98,45.0]
[1719588656585,1.41432154,142.04,142.01,16.7]
[1719588656788,1.41432154,142.04,142.02,45.0]
[1719588657717,1.41432154,142.04,142.01,45.0]
[1719588659324,7.90092154,142.05,142.01,61.7]
[1719588659697,1.41432154,142.04,142.01,61.7]
[1719588660298,7.90092154,142.05,142.01,61.7]
[1719588661027,1.41432154,142.04,142.01,61.7]
[1719588661135,1.41432154,142.04,141.95,5.55414939]
[1719588661410,32.8111,142.03,141.98,16.7]
[1719588661611,1.41432154,142.02,141.94,0.8447347]
[1719588661786,1.41432154,142.01,141.94,0.8447347]
[1719588661987,1.41432154,142.01,141.98,16.7]
[1719588662809,1.41432154,142.02,141.94,0.8447347]
[1719588662990,1.41432154,142.01,141.94,0.8447347]
[1719588663186,1.41432154,142.01,141.97,16.7]
[1719588664118,1.41432154,142.02,141.97,16.7]
[1719588664293,1.41432154,142.02,141.99,16.7]
[1719588664499,1.41432154,142.02,142.0,45.0]
[1719588666775,1.41432154,142.01,142.0,45.0]
[1719588666941,16.1111,142.03,142.0,45.0]
[1719588666942,1.41432154,142.02,142.0,45.0]
[1719588668611,1.41432154,142.01,142.0,45.0]
[1719588669731,16.1111,142.03,141.94,6.65676926]
[1719588669732,1.41432154,142.02,141.94,6.65676926]
[1719588670053,16.1111,142.03,141.94,6.65676926]
[1719588670054,6.5868,142.0,141.94,0.8447347]
[1719588670202,1.41432154,141.99,141.94,0.8447347]
[1719588670452,1.41432154,141.98,141.94,0.8447347]
[1719588671325,1.41432154,141.99,141.94,0.8447347]
[1719588671643,1.41432154,141.98,141.94,0.8447347]
[1719588671830,6.5868,142.0,141.94,0.8447347]
[1719588672409,6.5868,142.0,141.94,45.8447347]
[1719588673343,16.1111,142.03,141.94,45.8447347]
[1719588673523,16.1111,142.03,141.97,7.055]
[1719588673711,16.1111,142.03,141.98,45.0]
[1719588677345,16.6103,142.07,141.98,45.0]
[1719588677544,16.6103,142.07,141.99,33.41]
[1719588677707,1.41432154,142.06,142.0,45.0]
[1719588678044,16.6103,142.07,142.0,45.0]
[1719588678514,1.41432154,142.07,142.0,51.6425]
[1719588678716,22.7137,142.12,142.0,51.6425]
[1719588678717,1.41432154,142.11,142.0,51.6425]
[1719588678917,1.41432154,142.1,142.0,45.0]
[1719588679432,1.41432154,142.1,142.0,52.055]
[1719588679964,1.41432154,142.1,142.0,45.0]
[1719588680282,22.7137,142.12,141.96,49.0533]
[1719588680283,23.91352154,142.09,141.96,49.0533]
[1719588680479,20.0,142.08,141.96,49.0533]
[1719588680682,1.41432154,142.07,141.96,49.0533]
[1719588680968,1.41432154,142.07,141.96,15.6433]
[1719588681269,1.41432154,142.07,141.96,115.6433]
[1719588681868,1.41432154,142.07,141.96,121.24586785]
[1719588682960,1.41432154,142.07,141.98,33.41]
[1719588683150,1.41432154,142.08,141.98,33.41]
[1719588683352,1.41432154,142.07,141.98,33.41]
[1719588683673,1.41432154,142.07,141.96,121.24586785]
[1719588683964,1.41432154,142.07,141.97,33.41]
[1719588684269,1.41432154,142.08,141.97,33.41]
[1719588684561,1.41432154,142.07,141.97,33.41]
[1719588685966,1.41432154,142.06,141.97,33.41]
[1719588686157,1.41432154,142.08,141.97,33.41]
[1719588686551,1.41432154,142.07,141.97,33.41]
[1719588687469,22.4992,142.09,141.97,33.41]
[1719588687667,1.41432154,142.08,141.97,33.41]
[1719588687963,1.41432154,142.07,141.98,100.0]
[1719588688356,22.8572,142.06,141.96,5.60256785]
[1719588688601,22.8572,142.06,141.94,16.6380347]
[1719588688602,21.41432154,142.05,141.94,0.8447347]
[1719588688759,1.41432154,142.04,141.94,0.8447347]
[1719588689846,21.4494,142.03,141.94,0.8447347]
[1719588690073,1.41432154,142.02,141.94,0.8447347]
[1719588690260,1.41432154,142.01,141.94,0.8447347]
[1719588690763,1.41432154,142.01,141.94,7.8997347]
[1719588691063,21.4494,142.03,141.94,100.8447347]
[1719588691064,22.86372154,142.03,141.94,100.8447347]
[1719588691271,22.86372154,142.03,141.95,33.41]
[1719588691272,21.4494,142.03,141.95,33.41]
[1719588693080,1.41432154,142.02,141.94,0.8447347]
[1719588693368,1.41432154,142.01,141.94,0.8447347]
[1719588696873,1.41432154,142.02,141.94,34.2547347]
[1719588697068,21.4494,142.03,141.94,134.2547347]
[1719588698087,22.3651,142.06,141.97,133.41]
[1719588698283,22.3651,142.06,141.99,100.0]
[1719588698784,22.3651,142.06,141.97,133.41]
[1719588698980,22.3651,142.1,141.97,133.41]
[1719588699159,21.41432154,142.09,141.97,133.41]
[1719588699354,1.41432154,142.09,141.97,133.41]
[1719588700475,21.41432154,142.09,141.97,133.41]
[1719588700857,21.41432154,142.09,141.98,7.055]
[1719588701363,21.41432154,142.09,141.97,133.41]
[1719588701670,1.41432154,142.09,141.99,100.0]
[1719588701979,1.41432154,142.09,142.01,7.055]
[1719588702367,1.41432154,142.09,142.0,33.41]
[1719588703572,1.41432154,142.13,142.03,33.41]
[1719588703763,22.8751,142.14,142.06,33.41]
[1719588705069,22.8751,142.14,142.06,133.41]
[1719588706256,22.8751,142.14,142.06,33.41]
[1719588707169,22.6249,142.18,142.06,33.41]
[1719588707495,21.41432154,142.17,142.06,33.41]
[1719588708266,1.41432154,142.17,142.08,7.055]
[1719588708674,1.41432154,142.17,142.09,33.41]
[1719588708981,22.6249,142.18,142.1,100.0]
[1719588710707,22.6249,142.18,142.1,7.055]
[1719588710880,22.6249,142.18,142.09,33.41]
[1719588711588,6.092,142.2,142.1,115.2647]
[1719588711784,1.41432154,142.19,142.1,115.2647]
[1719588711988,1.41432154,142.19,142.11,7.055]
[1719588713968,23.0732,142.21,142.12,133.41]
[1719588714167,23.0732,142.21,142.1,148.6747]
[1719588714168,6.432,142.21,142.15,33.41]
[1719588715085,16.6412,142.24,142.18,33.41]
[1719588716335,16.6412,142.24,142.18,133.41]
[1719588716976,16.6412,142.24,142.18,33.41]
[1719588717178,16.6412,142.24,142.18,133.41]
[1719588717395,16.6412,142.24,142.18,33.41]
[1719588718262,15.0925,142.28,142.21,100.0]
[1719588718464,15.0925,142.28,142.22,33.41]
[1719588719404,15.0925,142.28,142.23,1.40566566]
[1719588719686,15.0925,142.28,142.22,33.41]
[1719588721069,15.0925,142.28,142.19,115.0925]
[1719588721265,1.41432154,142.27,142.18,15.2588]
[1719588721570,15.0925,142.28,142.18,30.3513]
[1719588721783,1.41432154,142.27,142.18,30.3513]
[1719588721986,1.41432154,142.27,142.18,15.2588]
[1719588722475,15.0925,142.28,142.17,148.5025]
[1719588722476,1.41432154,142.26,142.17,133.41]
[1719588722780,1.41432154,142.26,142.17,33.41]
[1719588722968,6.055,142.25,142.15,15.0925]
[1719588723182,15.3228,142.23,142.13,33.41]
[1719588723503,1.41432154,142.22,142.11,100.0]
[1719588723696,1.41432154,142.22,142.1,33.41]
[1719588723888,6.5074,142.21,142.11,100.0]
[1719588724092,1.41432154,142.2,142.11,100.0]
[1719588724295,1.41432154,142.2,142.1,39.17094319]
[1719588724470,7.92172154,142.21,142.1,139.17094319]
[1719588724667,7.92172154,142.21,142.1,105.76094319]
[1719588724869,1.41432154,142.2,142.1,105.76094319]
[1719588725095,1.41432154,142.2,142.12,100.0]
[1719588725296,7.92172154,142.21,142.12,100.0]
[1719588725524,6.5074,142.21,142.12,100.0]
[1719588725713,6.5074,142.21,142.14,100.0]
[1719588725915,6.5074,142.21,142.12,100.0]
[1719588726302,6.5074,142.21,142.14,100.0]
[1719588726708,6.5074,142.21,142.12,100.0]
[1719588727104,6.5074,142.21,142.14,100.0]
[1719588727716,15.3228,142.23,142.14,100.0]
[1719588727916,15.3228,142.23,142.14,107.055]
[1719588728313,15.3228,142.23,142.16,100.0]
[1719588728509,6.6109,142.25,142.16,100.0]
[1719588728742,6.6109,142.25,142.18,100.0]
[1719588729022,22.5413,142.33,142.2,100.0]
[1719588729218,1.41432154,142.32,142.18,100.0]
[1719588729820,1.41432154,142.32,142.16,100.0]
[1719588730130,6.5947,142.31,142.16,100.0]
[1719588730430,1.41432154,142.3,142.16,100.0]
[1719588730740,15.3652,142.28,142.16,100.0]
[1719588730945,1.41432154,142.27,142.16,100.0]
[1719588731232,6.6653,142.25,142.16,100.0]
[1719588733132,1.41432154,142.24,142.16,100.0]
[1719588733312,6.6653,142.25,142.16,100.0]
[1719588733514,6.6653,142.25,142.17,20.0]
[1719588734211,6.6653,142.25,142.16,100.0]
[1719588734519,1.41432154,142.24,142.16,100.0]
[1719588734723,1.41432154,142.24,142.17,1.05396775]
[1719588735735,1.41432154,142.24,142.16,100.0]
[1719588736252,1.41432154,142.24,142.17,63.52]
[1719588736537,1.41432154,142.32,142.2,100.0]
[1719588737831,22.8105,142.31,142.18,120.0]
[1719588738038,1.41432154,142.3,142.18,100.0]
[1719588738223,1.41432154,142.29,142.18,100.0]
[1719588740642,21.41432154,142.3,142.18,100.0]
[1719588741340,1.41432154,142.3,142.2,100.0]
[1719588741540,22.8105,142.31,142.22,100.0]
[1719588742721,22.8105,142.31,142.2,100.0]
[1719588743634,22.8105,142.31,142.22,100.0]
[1719588744546,22.8105,142.31,142.2,100.0]
[1719588744843,22.8105,142.31,142.21,33.28]
[1719588745428,22.8105,142.31,142.2,133.28]
[1719588745746,1.41432154,142.3,142.2,33.28]
[1719588746257,1.41432154,142.3,142.2,133.28]
[1719588746548,1.41432154,142.3,142.19,7.055]
[1719588746549,1.41432154,142.29,142.18,100.0]
[1719588746731,1.41432154,142.29,142.19,20.0]
[1719588746928,1.41432154,142.29,142.18,133.28]
[1719588750457,1.41432154,142.3,142.18,133.28]
[1719588752258,1.41432154,142.29,142.18,133.28]
[1719588752940,1.41432154,142.3,142.2,100.0]
[1719588753140,1.41432154,142.3,142.21,33.28]
[1719588753540,1.41432154,142.29,142.21,33.28]
[1719588754055,23.0064,142.28,142.18,105.52591241]
[1719588754263,23.0064,142.28,142.18,138.80591241]
[1719588754447,1.41432154,142.27,142.18,138.80591241]
[1719588754957,1.41432154,142.26,142.18,38.80591241]
[1719588755160,1.41432154,142.26,142.15,33.28]
[1719588755368,22.6921,142.25,142.15,33.28]
[1719588755546,1.41432154,142.24,142.15,33.28]
[1719588755745,22.6921,142.25,142.15,33.28]
[1719588755746,1.41432154,142.23,142.15,33.28]
[1719588755965,1.41432154,142.24,142.15,33.28]
[1719588756476,22.6921,142.25,142.15,33.28]
[1719588756769,22.6921,142.25,142.16,100.0]
[1719588757065,22.6921,142.25,142.15,33.28]
[1719588757370,1.41432154,142.24,142.15,33.28]
[1719588758176,1.41432154,142.23,142.12,107.055]
[1719588758879,21.744,142.22,142.12,7.055]
[1719588759070,1.41432154,142.21,142.1,133.28]
[1719588759285,21.744,142.22,142.1,33.28]
[1719588759286,1.41432154,142.2,142.1,33.28]
[1719588759778,6.6243,142.19,142.1,38.9297034]
[1719588760073,16.0347,142.17,142.1,38.9297034]
[1719588761389,16.0347,142.17,142.11,0.572939]
[1719588762045,16.0347,142.17,142.12,0.57289892]
[1719588762491,16.0347,142.17,142.1,138.9297034]
[1719588764277,6.6243,142.19,142.13,40.335]
[1719588764654,22.6521,142.29,142.16,33.28]
[1719588764853,21.41432154,142.28,142.16,33.28]
[1719588765478,21.41432154,142.28,142.17,100.0]
[1719588766071,1.41432154,142.28,142.19,100.0]
[1719588766280,22.6521,142.29,142.19,133.28]
[1719588766575,1.41432154,142.28,142.19,33.28]
[1719588768767,1.41432154,142.28,142.15,100.0]
[1719588769174,1.41432154,142.28,142.17,100.0]
[1719588769381,21.41432154,142.28,142.18,1.40586235]
[1719588769697,1.41432154,142.28,142.17,100.0]
[1719588769881,21.41432154,142.28,142.17,100.0]
[1719588770496,21.41432154,142.28,142.15,100.0]
[1719588771481,6.4199,142.27,142.15,100.0]
[1719588771705,1.41432154,142.26,142.15,100.0]
[1719588772081,1.41432154,142.26,142.17,100.0]
[1719588772293,1.41432154,142.26,142.13,44.515]
[1719588772294,1.41432154,142.26,142.15,100.0]
[1719588772875,1.41432154,142.26,142.16,20.0]
[1719588773302,1.41432154,142.26,142.15,100.0]
[1719588775697,21.6007,142.25,142.13,100.0]
[1719588775887,1.41432154,142.24,142.11,101.22454689]
[1719588776197,1.41432154,142.23,142.12,50.0]
[1719588776577,23.2253,142.22,142.12,50.0]
[1719588776776,1.41432154,142.21,142.11,1.22454689]
[1719588777104,23.2253,142.22,142.11,1.22454689]
[1719588777105,1.41432154,142.2,142.11,1.22454689]
[1719588777282,16.6333,142.18,142.11,1.22454689]
[1719588777612,1.41432154,142.17,142.11,1.22454689]
[1719588777814,1.41432154,142.17,142.1,5.6497034]
[1719588778046,1.41432154,142.17,142.08,1.22521352]
[1719588778235,1.41432154,142.17,142.08,17.85851352]
[1719588779916,1.41432154,142.17,142.08,1.22521352]
[1719588781344,6.3005,142.16,142.08,1.22521352]
[1719588781529,1.41432154,142.15,142.05,12.69235315]
[1719588781678,17.27462154,142.14,142.05,29.32565315]
[1719588781887,1.41432154,142.13,142.05,5.63735315]
[1719588782182,1.41432154,142.13,142.03,137.46]
[1719588782404,15.8603,142.14,142.05,100.0]
[1719588785437,15.8603,142.14,142.06,20.0]
[1719588785649,1.41432154,142.13,142.03,143.2159271]
[1719588785843,1.41432154,142.13,142.04,20.1837641]
[1719588786025,15.8603,142.14,142.05,100.04225946]
[1719588786217,15.8603,142.14,142.05,100.0]
[1719588787337,15.8603,142.14,142.04,27.055]
[1719588787541,1.41432154,142.13,142.04,20.0]
[1719588787920,6.4914,142.12,142.03,5.7559271]
[1719588788122,6.4914,142.12,142.04,0.04225946]
[1719588788123,1.41432154,142.11,142.04,0.04225946]
[1719588788312,6.4914,142.12,142.02,15.8603]
[1719588788313,1.41432154,142.1,142.02,15.8603]
[1719588788557,1.41432154,142.1,142.01,5.76062517]
[1719588788870,16.5067,142.09,141.99,122.6351]
[1719588789054,1.41432154,142.08,142.0,15.8603]
[1719588789367,6.6653,142.07,141.99,100.0]
[1719588789522,6.6653,142.07,142.01,1.22589908]
[1719588789722,1.41432154,142.06,142.01,1.22589908]
[1719588790053,1.41432154,142.06,142.0,1.40683251]
[1719588790356,1.41432154,142.06,141.99,5.65118519]
[1719588790519,1.41432154,142.06,141.98,1.22614983]
[1719588790921,1.41432154,142.06,141.96,5.58248927]
[1719588790922,15.7884,142.05,141.96,5.58248927]
[1719588791176,1.41432154,142.04,141.95,33.4]
[1719588791345,1.41432154,142.04,141.95,139.13963861]
[1719588791552,1.41432154,142.04,141.95,39.13963861]
[1719588791728,6.6521,142.03,141.95,39.13963861]
[1719588791912,1.41432154,142.02,141.95,39.13963861]
[1719588792554,8.06642154,142.03,141.95,39.13963861]
[1719588792947,6.6521,142.03,141.95,139.13963861]
[1719588793164,6.6521,142.03,141.97,100.0]
[1719588793748,6.6521,142.03,141.99,100.0]
[1719588793949,15.7884,142.05,141.99,100.0]
[1719588795239,1.41432154,142.14,141.99,100.0]
[1719588795439,6.261,142.12,142.04,133.4]
[1719588797744,7.67532154,142.12,142.04,33.4]
[1719588798273,6.261,142.12,142.04,33.4]
[1719588798493,7.67532154,142.12,142.04,33.4]
[1719588798728,7.67532154,142.12,142.02,100.0]
[1719588798866,7.67532154,142.12,142.03,20.0]
[1719588799773,6.261,142.12,142.04,100.0]
[1719588801110,6.261,142.12,142.03,36.1674]
[1719588801284,6.261,142.12,142.03,20.0]
[1719588801485,6.261,142.12,142.04,100.0]
[1719588801690,22.9486,142.14,142.1,100.0]
[1719588802007,1.41432154,142.2,142.1,100.0]
[1719588802181,7.33582599,142.27,142.1,100.0]
[1719588802377,1.41432154,142.26,142.1,100.0]
[1719588804275,1.41432154,142.26,142.1,107.055]
[1719588804926,9.69,142.25,142.1,107.055]
[1719588805112,6.1087,142.23,142.1,100.0]
[1719588805293,21.41432154,142.22,142.1,100.0]
[1719588805892,9.8155,142.21,142.08,100.0]
[1719588806097,1.41432154,142.2,142.09,20.0]
[1719588806807,6.2342,142.19,142.09,20.0]
[1719588807008,1.41432154,142.18,142.09,20.0]
[1719588807213,1.41432154,142.17,142.09,26.2342]
[1719588807580,1.41432154,142.17,142.08,100.0]
[1719588808000,1.41432154,142.17,142.08,106.2342]
[1719588808232,1.41432154,142.18,142.08,106.2342]
[1719588808394,1.41432154,142.17,142.08,106.2342]
[1719588809311,1.41432154,142.18,142.08,106.2342]
[1719588809502,1.41432154,142.17,142.08,106.2342]
[1719588809698,3.5813,142.16,142.08,6.2342]
[1719588810111,1.41432154,142.21,142.12,100.0]
[1719588810420,6.2362,142.23,142.12,100.0]
[1719588811487,1.41432154,142.22,142.12,100.0]
[1719588811596,1.41432154,142.22,142.13,6.2362]
[1719588811926,1.41432154,142.22,142.1,137.54]
[1719588812223,1.41432154,142.22,142.11,20.0]
[1719588812592,3.5813,142.21,142.1,106.2362]
[1719588812793,6.2129,142.19,142.1,6.2362]
[1719588812999,1.41432154,142.18,142.07,5.54267918]
[1719588813299,3.5813,142.16,142.08,6.2129]
[1719588814124,3.5813,142.16,142.06,100.0]
[1719588814531,3.5813,142.16,142.07,6.2129]
[1719588815102,3.5813,142.16,142.08,1.40575953]
[1719588816550,3.5813,142.16,142.08,101.40575953]
[1719588816711,3.5813,142.16,142.08,100.0]
[1719588817267,3.5813,142.16,142.07,6.2129]
[1719588818614,3.5813,142.16,142.07,39.5529]
[1719588819453,3.5813,142.16,142.07,139.5529]
[1719588821248,3.5813,142.16,142.09,100.0]
[1719588824674,6.0437,142.21,142.12,100.0]
[1719588824857,6.0437,142.21,142.14,33.34]
[1719588825064,6.0437,142.21,142.14,133.34]
[1719588825846,6.0437,142.21,142.14,33.34]
[1719588826189,6.0437,142.21,142.13,6.0437]
[1719588827746,3.5813,142.19,142.1,100.0]
[1719588828146,3.5813,142.19,142.11,6.0437]
[1719588833692,6.1159,142.17,142.09,33.34]
[1719588834028,1.41432154,142.16,142.09,6.0437]
[1719588834514,1.41432154,142.16,142.06,105.70814812]
[1719588834515,3.5813,142.15,142.06,105.70814812]
[1719588834690,3.5813,142.15,142.07,20.0]
[1719588834881,3.5813,142.15,142.07,26.1159]
[1719588836015,1.41432154,142.14,142.07,6.1159]
[1719588836315,6.2684,142.13,142.05,5.690644]
[1719588836528,1.41432154,142.12,142.04,100.0]
[1719588836882,3.5813,142.11,142.03,34.56490759]
[1719588837612,3.5813,142.11,142.04,6.2684]
[1719588839427,3.5813,142.11,142.05,45.50315464]
[1719588840232,3.5813,142.11,142.06,0.50311922]
[1719588840439,3.5813,142.11,142.06,1.40736994]
[1719588843119,3.5813,142.11,142.06,8.46236994]
[1719588843446,3.5813,142.11,142.07,52.055]
[1719588843615,3.5813,142.11,142.05,45.0]
[1719588843817,3.5813,142.11,142.08,45.0]
[1719588844027,3.5813,142.11,142.05,45.0]
[1719588845677,3.5813,142.11,142.06,0.7084473]
[1719588846163,8.38346461,142.1,142.04,6.2684]
[1719588846668,8.38346461,142.1,141.98,33.34]
[1719588846969,8.38346461,142.1,141.98,38.93544164]
[1719588847644,2.8728,142.09,141.99,45.0]
[1719588847840,1.75998699,142.08,141.99,45.0]
[1719588848174,4.63283215,142.09,142.0,100.0]
[1719588848372,4.63241696,142.09,142.01,34.21815234]
[1719588848536,4.63241696,142.09,142.02,0.8780905]
[1719588849053,4.63241696,142.09,142.02,45.0]
[1719588849568,2.8728,142.09,142.02,45.0]
[1719588849735,4.63247095,142.09,142.02,45.0]
[1719588850146,4.63247095,142.09,141.98,5.59544164]
[1719588850345,4.63247095,142.09,141.99,33.34]
[1719588850883,4.63247095,142.09,142.0,7.055]
[1719588851055,4.63247095,142.09,141.99,33.34]
[1719588851265,4.63247095,142.09,142.0,7.055]
[1719588851447,4.63247095,142.09,142.01,52.055]
[1719588851938,4.63247095,142.09,142.01,45.0]
[1719588852144,2.8728,142.09,142.03,100.0]
[1719588852342,2.8728,142.09,142.05,33.34]
[1719588852552,6.6243,142.1,142.05,33.34]
[1719588852553,6.6243,142.1,142.05,133.34]
[1719588852744,6.6243,142.1,142.06,45.0]
[1719588853964,2.8728,142.13,142.06,45.0]
[1719588854158,1.75912482,142.2,142.1,15.1689]
[1719588854379,7.87612358,142.21,142.12,133.34]
[1719588854671,7.87612358,142.21,142.13,45.0]
[1719588854932,7.87612358,142.21,142.14,0.4410599]
[1719588855046,7.87612358,142.21,142.15,0.44103622]
[1719588855241,6.1178,142.21,142.15,0.44103622]
[1719588855643,1.75816564,142.2,142.15,0.44103622]
[1719588855846,1.75816564,142.2,142.13,45.0]
[1719588859075,21.75816564,142.2,142.13,45.0]
[1719588859673,6.1178,142.21,142.13,45.0]
[1719588860380,6.1178,142.21,142.14,0.41788256]
[1719588860688,6.1178,142.21,142.15,0.45808057]
[1719588860992,1.75822365,142.2,142.13,45.0]
[1719588861182,6.1178,142.21,142.13,45.0]
[1719588861354,1.75822082,142.2,142.13,45.0]
[1719588864323,2.8728,142.19,142.08,5.57346679]
[1719588864497,2.8728,142.19,142.06,21.8286]
[1719588864498,1.75882592,142.18,142.06,21.8286]
[1719588864785,1.75885846,142.17,142.06,27.53657999]
[1719588865673,1.75883956,142.16,142.06,27.53657999]
[1719588865876,1.75882693,142.18,142.06,27.53657999]
[1719588866193,6.3778,142.16,142.06,11.82577999]
[1719588866481,6.3778,142.16,142.02,22.5625]
[1719588866482,21.75913789,142.15,142.02,129.6175]
[1719588866690,2.8728,142.13,142.02,122.6171]
[1719588866855,1.75941845,142.12,142.02,106.3778]
[1719588867059,1.75941845,142.12,142.0,100.0]
[1719588867313,6.3432,142.11,141.98,160.8143]
[1719588867486,1.75969346,142.1,141.98,160.8143]
[1719588868087,1.75969346,142.1,141.98,166.58180535]
[1719588868589,1.75969346,142.1,141.98,208.94180535]
[1719588868773,1.75969346,142.1,141.98,166.58180535]
[1719588869184,1.75969346,142.1,142.0,100.0]
[1719588869391,6.3432,142.11,142.0,100.0]
[1719588869904,6.3432,142.11,142.02,100.0]
[1719588870350,6.3432,142.11,142.0,100.0]
[1719588870982,1.75944883,142.1,142.0,100.0]
[1719588872292,6.3432,142.11,142.0,100.0]
[1719588873070,2.8728,142.13,142.06,100.0]
[1719588874090,6.4454,142.14,142.06,100.0]
[1719588876203,6.4454,142.14,142.06,106.4454]
[1719588876809,6.4454,142.14,142.07,0.87939592]
[1719588876987,6.4454,142.14,142.08,0.87933402]
[1719588877396,3.9454,142.14,142.08,0.87933402]
[1719588882497,1.75878577,142.22,142.1,100.0]
[1719588882498,8.28748458,142.22,142.1,100.0]
[1719588882699,8.28748458,142.22,142.12,33.33]
[1719588883420,6.5287,142.22,142.12,33.33]
[1719588883715,8.28678554,142.22,142.12,33.33]
[1719588884699,8.28678554,142.22,142.1,100.0]
[1719588886016,8.28678554,142.22,142.11,7.055]
[1719588886323,8.28678554,142.22,142.1,100.0]
[1719588887502,6.5287,142.22,142.12,100.0]
[1719588888611,6.5287,142.22,142.13,42.86820759]
[1719588888804,6.5287,142.22,142.13,0.50820759]
[1719588890321,6.5287,142.22,142.14,100.0]
[1719588890522,6.5287,142.22,142.16,100.0]
[1719588890735,6.5287,142.22,142.17,0.59704504]
[1719588891028,6.5287,142.22,142.18,0.59700304]
[1719588892931,2.8728,142.23,142.18,0.59700304]
[1719588893225,1.75765103,142.32,142.2,100.0]
[1719588893226,9.188,142.31,142.2,100.0]
[1719588893431,1.75713915,142.3,142.21,0.86558937]
[1719588893723,1.75713913,142.29,142.21,0.86558937]
[1719588894239,21.75727877,142.3,142.21,0.86558937]
[1719588895233,21.75727877,142.3,142.2,100.0]
[1719588896539,21.75727877,142.3,142.17,100.0]
[1719588896918,2.8728,142.28,142.17,100.0]
[1719588897125,1.75760547,142.27,142.15,137.5]
[1719588897325,1.75762233,142.26,142.16,20.0]
[1719588898186,4.63039697,142.28,142.17,100.0]
[1719588899029,4.63039697,142.28,142.16,20.0]
[1719588899209,4.63039697,142.28,142.17,100.0]
[1719588900310,4.63039697,142.28,142.16,20.0]
[1719588900526,4.63039697,142.28,142.17,100.0]
[1719588901353,4.63039697,142.28,142.18,1.0508768]
[1719588902140,24.63039697,142.28,142.18,1.0508768]
[1719588902343,24.63039697,142.28,142.17,100.0]
[1719588902542,2.8728,142.28,142.19,100.0]
[1719588902714,2.8728,142.28,142.2,7.055]
[1719588903454,4.62991007,142.28,142.2,7.055]
[1719588904118,4.62991007,142.28,142.19,6.3121]
[1719588904831,4.62991007,142.28,142.17,33.3]
[1719588905350,2.8728,142.25,142.12,5.73316969]
[1719588905522,2.8728,142.25,142.1,115.8258]
[1719588905523,2.8728,142.23,142.11,33.3]
[1719588905721,1.75833166,142.22,142.13,28.162988]
[1719588906536,1.75833166,142.22,142.11,33.3]
[1719588906746,1.75833166,142.22,142.1,105.72726386]
[1719588907423,6.6112,142.21,142.1,5.72726386]
[1719588907624,2.8728,142.19,142.08,122.8728]
[1719588907850,1.75855909,142.18,142.08,100.0]
[1719588908149,1.75855909,142.18,142.09,6.6112]